bitfinex-derivatives/quotes_ETHF0:USTF0_20250626
["timestamp","ask_amount","ask_price","bid_price","bid_amount"]
[1750969980890,0.81652,2448.4,2448.3,3.9102]
[1750969981091,0.8165,2448.5,2448.3,4.72674]
[1750969982090,0.81652,2448.4,2448.3,4.72674]
[1750969982292,0.81651,2448.5,2448.3,4.72674]
[1750969982589,0.81652,2448.4,2448.3,3.9102]
[1750969984192,0.81652,2448.4,2448.3,3.2078]
[1750969984693,2.1193,2448.5,2448.3,3.2078]
[1750969984895,0.81652,2448.4,2448.3,3.2078]
[1750969986792,0.81652,2448.4,2448.3,3.9264]
[1750969986995,0.8165,2448.5,2448.3,8.10713883]
[1750969987198,0.81644,2448.7,2448.5,0.81647]
[1750969987390,3.94112225,2448.8,2448.5,0.81647]
[1750969987695,0.81642,2448.7,2448.5,0.81647]
[1750969987994,0.81645,2448.6,2448.5,0.81647]
[1750969988194,0.81644,2448.7,2448.5,0.81647]
[1750969988492,0.81645,2448.6,2448.5,0.81647]
[1750969989399,0.81643,2448.7,2448.5,0.81647]
[1750969989693,1.5093,2448.8,2448.6,4.02425]
[1750969989887,0.81639,2448.8,2448.7,0.6931]
[1750969990695,2.43181225,2449.0,2448.7,4.87371883]
[1750969990896,0.81639,2448.8,2448.7,4.05730883]
[1750969991097,0.81639,2448.8,2448.7,0.6931]
[1750969991591,3.24812225,2449.1,2448.7,4.05730883]
[1750969991791,1.49448,2449.2,2449.0,3.2078]
[1750969992094,3.2078,2450.9,2449.1,86.65634279]
[1750969992299,3.919,2450.9,2450.3,3.36420883]
[1750969992489,0.81579,2450.6,2450.3,3.36420883]
[1750969992691,0.81576,2450.7,2450.3,2.96717]
[1750969993086,3.919,2450.9,2450.6,3.2078]
[1750969993087,0.7112,2450.9,2450.6,3.2078]
[1750969993286,3.36420883,2451.1,2450.3,7.28900883]
[1750969993488,1.53887,2451.0,2450.6,3.2078]
[1750969993689,0.81575,2450.7,2450.6,3.2078]
[1750969994288,0.81585,2450.4,2450.3,3.2078]
[1750969994495,9.11170419,2451.0,2450.0,3.2078]
[1750969994496,6.589,2450.6,2450.0,3.2078]
[1750969994995,0.81594,2450.2,2450.0,3.2078]
[1750969995298,0.81593,2450.2,2450.0,4.5648]
[1750969995490,6.589,2450.6,2450.0,4.5648]
[1750969995688,0.81591,2450.3,2450.0,4.5648]
[1750969996394,0.81592,2450.2,2450.0,4.5648]
[1750969996595,0.81595,2450.1,2450.0,3.2078]
[1750969997196,2.04003,2450.0,2449.3,5.10963691]
[1750969997391,0.81619,2449.4,2449.3,3.9013]
[1750969997587,0.81619,2449.4,2449.3,5.0982384]
[1750969998205,0.81619,2449.4,2449.3,3.2078]
[1750969999595,0.81629,2449.1,2449.0,3.2078]
[1750970000003,0.81629,2449.1,2449.0,3.74690264]
[1750970000405,0.81629,2449.1,2449.0,3.2078]
[1750970000802,0.81629,2449.1,2449.0,3.74700903]
[1750970001508,0.81629,2449.1,2449.0,3.2078]
[1750970001699,0.81629,2449.1,2449.0,3.74687697]
[1750970001895,0.81629,2449.1,2449.0,3.2078]
[1750970002997,3.2078,2449.6,2449.0,3.2078]
[1750970003190,0.7316,2450.2,2449.5,3.2078]
[1750970003402,0.7316,2450.2,2449.8,3.2078]
[1750970003403,0.81601,2450.0,2449.8,3.2078]
[1750970003698,0.81597,2450.1,2449.8,4.02384]
[1750970003895,2.03927,2450.9,2450.0,0.81596]
[1750970004100,0.81584,2450.5,2450.3,3.2078]
[1750970004295,0.8158,2450.6,2450.3,3.2078]
[1750970004702,8.8842,2450.8,2450.3,3.2078]
[1750970004703,0.81585,2450.4,2450.3,3.2078]
[1750970006205,2.16255,2450.4,2450.3,3.2078]
[1750970007008,8.85955,2450.4,2450.3,3.2078]
[1750970007506,0.7316,2450.8,2450.3,8.2078]
[1750970007707,3.2078,2451.1,2450.6,3.2078]
[1750970008204,3.2078,2451.1,2450.6,4.5632]
[1750970008408,3.2078,2451.4,2450.9,3.2078]
[1750970008604,3.2078,2451.4,2451.0,1.50543]
[1750970008802,3.2078,2451.4,2451.3,0.81555]
[1750970009001,0.81549,2451.5,2451.3,3.2078]
[1750970009210,3.2078,2451.8,2451.3,3.2078]
[1750970009400,3.2078,2451.8,2451.4,0.81551]
[1750970009401,0.81544,2451.7,2451.4,0.81551]
[1750970009606,0.81537,2451.9,2451.5,0.81546]
[1750970009812,0.8154,2451.8,2451.5,0.81546]
[1750970010100,3.2078,2452.2,2451.4,1.456]
[1750970010101,0.81528,2452.2,2451.7,6.34929419]
[1750970010300,3.2078,2452.7,2451.9,3.2078]
[1750970010301,3.22805057,2452.7,2451.9,3.2078]
[1750970010506,3.2078,2453.8,2452.6,9.55709419]
[1750970010811,3.2078,2453.8,2452.0,35.51087]
[1750970010812,1.4,2453.7,2453.1,3.2078]
[1750970011013,3.2078,2454.5,2453.5,6.34929419]
[1750970011202,0.29446674,2454.6,2453.7,3.2078]
[1750970011402,0.29446674,2454.6,2453.3,48.991]
[1750970011403,3.2078,2454.0,2453.4,3.2078]
[1750970011604,7.081,2454.4,2453.4,4.02265]
[1750970011917,0.29446674,2454.6,2454.0,4.02244]
[1750970012203,0.29446674,2454.6,2454.3,3.2078]
[1750970012408,0.81472,2453.9,2453.7,3.2078]
[1750970012606,3.2078,2454.4,2453.8,1.4547]
[1750970012804,0.81472,2453.8,2453.7,3.2078]
[1750970013007,3.2078,2454.2,2453.4,3.2078]
[1750970013209,7.078,2454.4,2453.4,3.2078]
[1750970013210,3.2078,2453.9,2453.4,3.2078]
[1750970013415,0.81481,2453.6,2453.4,3.2078]
[1750970013615,0.81482,2453.5,2453.4,3.2078]
[1750970013909,0.81478,2453.7,2453.2,8.88438046]
[1750970014105,0.96046674,2454.6,2453.6,8.24447046]
[1750970014312,0.81461,2454.2,2454.1,3.2078]
[1750970014506,1.66506674,2454.6,2453.8,7.732]
[1750970014700,0.81469,2453.9,2453.7,4.6625]
[1750970015008,0.81463,2454.1,2453.7,12.3945]
[1750970015213,1.66506674,2454.6,2453.7,12.3945]
[1750970015399,0.81467,2454.0,2453.8,1.3567]
[1750970015811,0.81467,2454.0,2453.7,3.2078]
[1750970016113,1.3873,2454.3,2453.7,10.9398]
[1750970016411,0.81472,2453.8,2453.7,7.732]
[1750970016611,0.8148,2453.6,2453.4,3.2078]
[1750970016905,0.81482,2453.5,2453.4,3.2078]
[1750970017705,0.81492,2453.2,2453.1,3.2078]
[1750970018308,0.81484,2453.5,2453.1,3.2078]
[1750970018614,9.0802,2453.7,2453.1,3.2078]
[1750970018811,0.81484,2453.5,2453.1,3.2078]
[1750970019116,1.3502,2453.7,2453.1,3.2078]
[1750970019413,0.81492,2453.2,2453.1,3.2078]
[1750970019812,1.3502,2453.4,2452.8,3.2078]
[1750970020018,1.3502,2453.1,2452.8,3.2078]
[1750970020405,3.2078,2453.6,2452.8,3.2078]
[1750970020608,1.4486,2453.5,2452.8,3.2078]
[1750970020810,0.81502,2452.9,2452.8,3.2078]
[1750970021512,5.0,2452.9,2452.3,3.2078]
[1750970021713,0.81514,2452.6,2452.3,3.2078]
[1750970021913,0.81515,2452.5,2452.3,3.2078]
[1750970022112,0.81511,2452.7,2452.3,3.2078]
[1750970022315,0.8151,2452.7,2452.6,3.2078]
[1750970022623,0.8151,2452.7,2452.6,0.54432342]
[1750970023111,3.2078,2452.8,2452.2,10.9378]
[1750970023317,0.81503,2452.9,2452.6,0.8151]
[1750970023515,0.81502,2452.9,2452.8,3.2078]
[1750970024319,0.81501,2453.0,2452.8,3.2078]
[1750970024513,0.81502,2452.9,2452.8,3.2078]
[1750970024710,1.411,2453.1,2452.9,0.81499]
[1750970024917,3.2078,2453.3,2452.8,3.2078]
[1750970025709,1.411,2453.2,2452.8,3.2078]
[1750970025922,3.2078,2453.3,2452.8,3.2078]
[1750970026117,0.81498,2453.1,2452.8,4.02284]
[1750970026323,3.2078,2453.3,2452.8,3.2078]
[1750970026622,0.81497,2453.1,2452.8,4.02285]
[1750970026922,0.81502,2452.9,2452.8,3.2078]
[1750970028221,1.4095,2453.2,2452.8,4.02285]
[1750970028222,0.815,2453.0,2452.8,4.02285]
[1750970028421,0.815,2453.0,2452.8,3.2078]
[1750970028717,0.81502,2452.9,2452.8,3.2078]
[1750970029223,0.81496,2453.1,2452.9,0.81501]
[1750970029422,3.2078,2453.3,2452.8,3.2078]
[1750970029612,3.2078,2453.3,2452.6,8.54411]
[1750970029613,0.81512,2452.6,2452.5,3.2078]
[1750970029921,0.81522,2452.3,2452.2,3.2078]
[1750970030308,15.9368,2452.3,2451.4,12.72567446]
[1750970030513,3.2078,2451.7,2451.5,0.81548]
[1750970030709,12.2978,2452.2,2451.4,12.72567446]
[1750970030914,3.2078,2451.8,2451.4,12.72567446]
[1750970031218,0.81549,2451.5,2451.4,12.72567446]
[1750970031415,1.361,2451.7,2451.1,4.41613691]
[1750970031717,2.03844,2451.9,2451.0,8.54465]
[1750970031718,0.81557,2451.3,2451.0,8.54465]
[1750970032126,4.5688,2451.4,2451.0,8.54465]
[1750970032330,1.361,2451.4,2451.0,7.729]
[1750970032515,1.361,2451.4,2451.1,0.81561]
[1750970032715,0.81557,2451.3,2451.0,11.75243]
[1750970032918,1.361,2451.4,2451.0,10.9368]
[1750970033116,0.81556,2451.3,2451.0,11.75245]
[1750970033716,0.8156,2451.2,2451.0,10.9368]
[1750970033916,2.14787,2451.3,2451.0,11.75244]
[1750970034115,0.81559,2451.2,2451.1,1.28917262]
[1750970034318,2.14787,2451.3,2451.0,11.75243]
[1750970034824,1.3323,2451.3,2451.1,0.81561]
[1750970035523,3.2078,2451.4,2451.1,0.81561]
[1750970035723,0.81556,2451.3,2451.0,11.75244]
[1750970036022,0.81556,2451.3,2451.1,2.10479487]
[1750970036224,0.81554,2451.4,2451.2,1.2901634]
[1750970036428,0.81556,2451.3,2451.1,2.1471]
[1750970036727,0.81559,2451.2,2451.0,19.18211046]
[1750970036922,0.81557,2451.3,2451.1,2.10578189]
[1750970037125,0.81555,2451.4,2451.2,2.10576189]
[1750970037328,12.2691,2451.7,2451.0,19.57481737]
[1750970037639,0.81559,2451.2,2451.1,1.29123157]
[1750970039622,0.81555,2451.3,2451.1,1.29123157]
[1750970039924,0.81555,2451.3,2451.2,1.29123157]
[1750970040328,3.2078,2451.6,2451.2,1.29123157]
[1750970040522,3.2078,2452.1,2451.7,0.81539]
[1750970040722,0.81532,2452.0,2451.7,0.81539]
[1750970041124,4.0231,2452.1,2451.4,11.84581737]
[1750970041329,0.81536,2451.9,2451.7,4.0232]
[1750970041929,2.0382,2452.2,2451.5,1.20833691]
[1750970042131,0.81542,2451.7,2451.6,1.30946415]
[1750970044932,5.81542,2451.7,2451.6,1.30946415]
[1750970045138,5.81542,2451.7,2451.6,1.28921359]
[1750970045435,5.81542,2451.7,2451.6,0.45042359]
[1750970045736,0.81555,2451.3,2451.2,1.20833691]
[1750970045926,2.03871,2451.6,2451.1,1.20833691]
[1750970045927,0.81559,2451.2,2451.1,1.20833691]
[1750970046129,2.18559,2451.2,2451.1,1.20833691]
[1750970047432,0.81562,2451.1,2451.0,1.20833691]
[1750970047635,0.81565,2451.0,2450.9,1.61111588]
[1750970047937,0.81569,2450.9,2450.8,1.61111588]
[1750970048633,0.81569,2450.9,2450.6,2.41667383]
[1750970048634,0.81572,2450.8,2450.7,1.61111588]
[1750970049237,4.02352,2450.8,2450.7,1.61111588]
[1750970049441,0.81579,2450.6,2450.5,2.41667383]
[1750970049637,0.81577,2450.7,2450.5,2.41667383]
[1750970049837,0.81579,2450.6,2450.5,1.60281527]
[1750970050430,0.81579,2450.6,2450.4,3.2078]
[1750970050431,0.81582,2450.5,2450.4,1.60281527]
[1750970051240,0.81585,2450.4,2450.3,1.60281527]
[1750970051625,0.81583,2450.5,2450.3,5.62648527]
[1750970051829,0.81582,2450.5,2450.4,1.20233815]
[1750970052541,0.81585,2450.4,2450.3,6.25221527]
[1750970053232,0.02850477,2450.4,2450.3,12.06810527]
[1750970053638,0.02850477,2450.4,2450.3,11.66751589]
[1750970054734,0.84435477,2450.4,2450.3,4.6494]
[1750970054933,0.02850477,2450.4,2450.3,6.66763921]
[1750970055248,0.84435477,2450.4,2450.3,5.46529]
[1750970055627,0.02850477,2450.4,2450.3,5.46529]
[1750970056335,0.87199754,2450.4,2450.3,7.88196383]
[1750970057139,0.87199754,2450.4,2450.3,4.6494]
[1750970057335,0.87199754,2450.4,2450.3,7.0571291]
[1750970057642,0.87199754,2450.4,2450.3,6.92664299]
[1750970059242,0.87199754,2450.4,2450.3,4.51891389]
[1750970060843,0.87199754,2450.4,2450.3,6.93411623]
[1750970061234,0.87199754,2450.4,2450.3,4.51891389]
[1750970061435,0.87199754,2450.4,2450.3,6.93473501]
[1750970061638,0.05614754,2450.4,2450.3,5.33480389]
[1750970062042,0.05614754,2450.4,2450.3,9.92268594]
[1750970062350,0.05614754,2450.4,2450.3,6.66900389]
[1750970065552,0.87199754,2450.4,2450.3,6.66900389]
[1750970065942,0.05614754,2450.4,2450.3,6.66900389]
[1750970066142,0.87199754,2450.4,2450.3,4.51891389]
[1750970066343,0.87199754,2450.4,2450.3,5.33480389]
[1750970066548,0.05614754,2450.4,2450.3,5.33480389]
[1750970066849,0.87199754,2450.4,2450.3,5.33480389]
[1750970067157,0.05614754,2450.4,2450.3,5.33480389]
[1750970067348,0.87199754,2450.4,2450.3,5.33480389]
[1750970067547,0.05614754,2450.4,2450.3,5.33480389]
[1750970067944,0.05614754,2450.4,2450.3,6.76750389]
[1750970069553,0.6842,2450.9,2450.3,5.95161389]
[1750970069744,0.8157,2450.9,2450.8,5.23167097]
[1750970070054,6.63501,2451.3,2450.9,0.81566]
[1750970070055,1.3883,2451.3,2450.9,0.81566]
[1750970070254,0.81568,2451.0,2450.9,1.20792373]
[1750970070547,0.81568,2451.0,2450.9,2.5228683]
[1750970070949,4.02348,2451.0,2450.9,2.5228683]
[1750970071256,4.02348,2451.0,2450.9,1.31494457]
[1750970071955,9.02348,2451.0,2450.9,1.31494457]
[1750970072354,4.02348,2451.0,2450.9,1.31494457]
[1750970072548,9.02348,2451.0,2450.9,1.31494457]
[1750970072949,4.02348,2451.0,2450.9,1.31494457]
[1750970073150,4.5961,2451.3,2450.9,1.31494457]
[1750970073353,0.81559,2451.2,2451.0,3.3384983]
[1750970073647,0.81559,2451.2,2451.1,1.31494457]
[1750970073849,3.2078,2451.3,2451.1,1.31494457]
[1750970074049,3.2078,2451.3,2451.2,2.13053457]
[1750970075057,0.6975,2451.4,2451.3,0.81555]
[1750970075249,0.6975,2451.4,2451.3,2.13049457]
[1750970075650,1.51302,2451.4,2451.3,1.31494457]
[1750970075850,0.02324689,2451.4,2451.3,1.31494457]
[1750970076053,0.02324689,2451.4,2451.3,2.13049457]
[1750970076554,0.02324689,2451.4,2451.3,3.3384183]
[1750970077556,0.8154,2451.8,2451.6,0.81545]
[1750970077748,0.8154,2451.8,2451.7,1.31494457]
[1750970078254,0.81537,2451.9,2451.7,1.31494457]
[1750970078455,0.81537,2451.9,2451.8,1.31494457]
[1750970078651,0.81545,2451.6,2451.5,1.2112425]
[1750970078853,0.81545,2451.6,2451.5,1.31865789]
[1750970079857,0.83869689,2451.6,2451.5,1.31865789]
[1750970080660,0.81555,2451.3,2451.2,1.2112425]
[1750970080961,0.81555,2451.3,2451.2,2.53069651]
[1750970081460,0.81555,2451.3,2451.2,2.93444402]
[1750970081658,0.84845065,2451.3,2451.2,2.93444402]
[1750970081961,2.18275065,2451.3,2451.2,1.31945401]
[1750970082456,7.18275065,2451.3,2451.2,1.31945401]
[1750970082658,2.18275065,2451.3,2451.2,1.31945401]
[1750970083261,2.18275065,2451.3,2451.2,2.53024372]
[1750970084667,2.18275065,2451.3,2451.2,2.93444402]
[1750970085662,2.18275065,2451.3,2451.2,1.31945401]
[1750970086255,0.03290065,2451.3,2451.2,2.13504401]
[1750970086459,0.03290065,2451.3,2451.2,14.11206231]
[1750970087761,0.81537,2451.9,2451.4,2.0388]
[1750970088064,0.81539,2451.8,2451.7,0.81541]
[1750970088257,0.81539,2451.8,2451.7,2.13486401]
[1750970088867,2.91724,2452.0,2451.8,0.81538]
[1750970089061,1.53201,2452.1,2451.6,3.2078]
[1750970089357,1.53201,2452.1,2451.7,1.31695681]
[1750970089358,0.81532,2452.0,2451.7,1.31695681]
[1750970089554,0.81532,2452.0,2451.8,2.13231681]
[1750970089758,0.81532,2452.0,2451.8,0.81536]
[1750970090561,0.81536,2451.9,2451.7,0.8154]
[1750970090761,0.81535,2451.9,2451.8,1.31622189]
[1750970091665,0.81542,2451.7,2451.6,3.2078]
[1750970091865,0.81542,2451.7,2451.6,4.52414026]
[1750970092371,2.2307,2451.8,2451.6,5.33959026]
[1750970092559,2.2307,2451.8,2451.7,1.31634026]
[1750970093768,2.2486328,2451.8,2451.7,1.31634026]
[1750970094561,1.46169323,2451.8,2451.7,1.31634026]
[1750970094762,2.27708323,2451.8,2451.7,1.31634026]
[1750970095061,7.27708323,2451.8,2451.7,1.31634026]
[1750970096264,7.95028323,2451.8,2451.7,1.31634026]
[1750970096761,7.96003754,2451.8,2451.7,1.31634026]
[1750970098071,15.41103754,2451.8,2451.7,1.31634026]
[1750970099371,10.41103754,2451.8,2451.7,1.31634026]
[1750970100975,2.96003754,2451.8,2451.7,1.31634026]
[1750970101169,10.41103754,2451.8,2451.7,1.31634026]
[1750970101369,0.05614754,2451.8,2451.7,2.52529876]
[1750970101569,0.05614754,2451.8,2451.7,2.92828492]
[1750970101776,0.05614754,2451.8,2451.7,5.74050492]
[1750970102276,0.05614754,2451.8,2451.7,4.12856026]
[1750970102776,0.07599409,2451.8,2451.7,5.73844922]
[1750970103076,0.07599409,2451.8,2451.7,4.12856026]
[1750970103279,0.07599409,2451.8,2451.7,5.73844922]
[1750970103569,0.07599409,2451.8,2451.7,6.40214922]
[1750970103769,0.81529,2452.1,2452.0,0.71947936]
[1750970103976,11.1322,2452.5,2452.0,1.31634026]
[1750970104274,12.5123,2452.5,2452.1,1.31634026]
[1750970104476,12.5123,2452.5,2452.0,1.4049]
[1750970104666,12.5123,2452.5,2452.1,1.31606278]
[1750970104868,0.81528,2452.2,2452.0,2.2202]
[1750970105068,0.81528,2452.2,2452.1,1.31606626]
[1750970105662,0.83169444,2452.3,2452.1,1.31606626]
[1750970105862,0.01645444,2452.2,2452.1,0.81528]
[1750970106066,0.6645,2452.8,2452.1,12.0794068]
[1750970106268,0.81504,2452.9,2452.5,3.2078]
[1750970106474,7.218,2453.0,2452.6,0.7018]
[1750970106670,8.6368,2453.0,2452.6,0.7018]
[1750970106976,3.2078,2452.8,2452.2,3.2078]
[1750970107276,0.81517,2452.5,2452.3,0.81521]
[1750970107477,0.81517,2452.5,2452.2,4.02303]
[1750970107670,0.81522,2452.3,2452.2,3.2078]
[1750970107872,0.81532,2452.0,2451.9,3.2078]
[1750970108073,0.81532,2452.1,2451.9,4.52432484]
[1750970108273,0.81529,2452.1,2452.0,1.31652484]
[1750970109471,5.24557,2452.7,2452.0,3.33940054]
[1750970109673,0.81525,2452.2,2452.1,2.52411054]
[1750970110078,0.81525,2452.2,2452.1,1.31652484]
[1750970110877,0.81535,2451.9,2451.8,1.2075857]
[1750970111082,3.2078,2451.9,2451.6,1.60988896]
[1750970111378,0.81542,2451.7,2451.6,1.60988896]
[1750970111581,0.81545,2451.6,2451.5,2.417917]
[1750970112081,2.1025,2451.8,2451.4,5.625717]
[1750970112082,0.81549,2451.5,2451.4,5.625717]
[1750970112283,2.16749,2451.5,2451.4,3.2078]
[1750970112576,0.81555,2451.3,2451.2,0.6742]
[1750970112781,1.352,2451.5,2451.2,0.6742]
[1750970112973,0.81552,2451.4,2451.3,3.2207742]
[1750970113175,0.81555,2451.3,2451.2,4.74130257]
[1750970114168,0.81555,2451.3,2451.1,7.27490257]
[1750970114169,0.81556,2451.3,2451.1,7.27490257]
[1750970114373,10.4248,2451.6,2451.2,3.22230807]
[1750970114573,11.24025,2451.6,2451.5,2.41676793]
[1750970115884,0.81545,2451.6,2451.5,2.41676793]
[1750970116079,0.81545,2451.6,2451.5,1.61232303]
[1750970116384,0.81552,2451.4,2451.3,2.41676793]
[1750970117487,0.81555,2451.3,2451.2,2.41676793]
[1750970118984,0.81559,2451.2,2451.1,1.61383057]
[1750970119190,0.81562,2451.1,2451.0,1.61383057]
[1750970119582,2.18032,2451.1,2451.0,1.61383057]
[1750970119889,0.81565,2451.0,2450.9,2.41676793]
[1750970120090,2.18035,2451.0,2450.9,2.41676793]
[1750970121088,0.81569,2450.9,2450.8,2.41676793]
[1750970121384,2.15719,2450.9,2450.8,2.41676793]
[1750970121583,0.81572,2450.8,2450.7,2.41676793]
[1750970121793,0.81575,2450.7,2450.6,1.26482793]
[1750970121983,0.81575,2450.7,2450.3,3.22230807]
[1750970121984,0.81585,2450.4,2450.3,3.22230807]
[1750970122184,0.81589,2450.3,2450.2,3.92350807]
[1750970122688,0.81589,2450.3,2450.2,0.7012]
[1750970122985,0.81589,2450.3,2450.2,1.9963982]
[1750970123384,4.02367,2450.4,2450.2,1.99549739]
[1750970123583,4.02367,2450.4,2450.3,2.90598477]
[1750970124391,4.02367,2450.4,2450.3,1.29429739]
[1750970124587,4.02367,2450.4,2450.3,2.5024936]
[1750970124890,4.02367,2450.4,2450.3,1.29429739]
[1750970125392,0.81595,2450.1,2450.0,1.20819621]
[1750970125691,0.81595,2450.1,2450.0,2.50010953]
[1750970126092,0.84435022,2450.1,2450.0,2.50010953]
[1750970126281,0.84435022,2450.1,2450.0,1.29191332]
[1750970127191,0.87209754,2450.1,2450.0,1.29191332]
[1750970128494,0.81602,2449.9,2449.8,0.6787]
[1750970128689,0.81602,2449.9,2449.8,1.9683155]
[1750970128905,0.816,2450.0,2449.8,1.9683155]
[1750970129191,5.3442,2450.3,2450.0,0.81596]
[1750970129390,3.2078,2450.3,2449.9,1.3249]
[1750970129596,0.81593,2450.2,2450.0,0.81597]
[1750970129798,0.81591,2450.3,2450.0,2.14087]
[1750970129991,0.8159,2450.3,2450.0,2.14086]
[1750970130193,0.81592,2450.2,2450.0,2.14086]
[1750970130393,0.81591,2450.3,2450.0,2.14086]
[1750970130697,0.81586,2450.4,2450.2,4.02371]
[1750970130999,0.81589,2450.3,2450.2,3.2078]
[1750970132999,52.8444,2450.9,2450.2,3.2078]
[1750970133000,8.0368,2450.6,2450.2,3.2078]
[1750970133205,7.221,2451.0,2450.5,4.0236]
[1750970133398,0.82998918,2450.8,2450.6,0.81578]
[1750970133902,0.01425918,2450.8,2450.6,1.3871]
[1750970134098,7.071,2451.5,2450.7,6.3476375]
[1750970134305,0.81562,2451.1,2451.0,6.3476375]
[1750970134492,0.81565,2451.0,2450.9,0.6611]
[1750970134692,0.01425918,2451.1,2450.9,1.47678]
[1750970135098,0.01425918,2451.1,2450.9,2.86388]
[1750970135499,0.01425918,2451.1,2450.9,2.0482]
[1750970135700,0.01425918,2451.0,2450.9,2.86388]
[1750970135899,0.02851836,2451.0,2450.9,2.86388]
[1750970136099,0.02851836,2451.0,2450.9,2.0482]
[1750970136299,0.84416836,2451.0,2450.9,2.0482]
[1750970136500,0.84416836,2451.0,2450.9,0.6611]
[1750970137107,0.85753836,2451.0,2450.9,0.6611]
[1750970141306,0.85753836,2451.0,2450.9,1.95081008]
[1750970141506,0.85753836,2451.0,2450.9,1.28971008]
[1750970142011,0.81579,2450.6,2450.5,4.41599621]
[1750970142207,0.81579,2450.6,2450.5,3.2078]
[1750970142898,0.85767836,2450.6,2450.5,3.2078]
[1750970143299,0.87432903,2450.6,2450.5,4.81948738]
[1750970144007,0.05853903,2450.6,2450.5,5.63530738]
[1750970144708,0.072329,2450.6,2450.5,4.81948738]
[1750970145407,0.072329,2450.6,2450.5,3.2078]
[1750970145602,0.90190897,2450.6,2450.5,4.82139027]
[1750970146105,0.08611897,2450.6,2450.5,4.82139027]
[1750970146407,0.08611897,2450.6,2450.5,4.02362]
[1750970146706,0.0980359,2450.6,2450.5,3.2078]
[1750970147010,0.0980359,2450.6,2450.5,4.02362]
[1750970147201,0.0980359,2450.6,2450.5,6.43860091]
[1750970147505,0.0980359,2450.6,2450.5,4.02362]
[1750970148309,0.0980359,2450.6,2450.5,9.02362]
[1750970149609,0.0980359,2450.6,2450.5,6.4467683]
[1750970151910,0.0980359,2450.6,2450.5,4.02362]
[1750970152108,0.0980359,2450.6,2450.5,6.44623449]
[1750970152310,0.0980359,2450.6,2450.5,9.80233221]
[1750970152710,0.81574,2450.8,2450.7,0.69977054]
[1750970152911,0.81574,2450.8,2450.7,2.31474321]
[1750970153412,0.81574,2450.8,2450.7,5.67084093]
[1750970153712,0.83368356,2450.8,2450.7,5.67084093]
[1750970153913,0.01794356,2450.8,2450.7,5.67084093]
[1750970154114,0.01794356,2450.8,2450.7,6.9648206]
[1750970154811,0.81571,2450.9,2450.8,0.77983288]
[1750970155016,0.81571,2450.9,2450.8,3.28515698]
[1750970155210,0.81567,2451.0,2450.8,3.28515698]
[1750970155411,0.81567,2451.0,2450.9,1.29397967]
[1750970156910,1.3553,2451.1,2450.9,1.29397967]
[1750970157217,0.81565,2451.0,2450.8,2.02705443]
[1750970157515,0.81565,2451.0,2450.9,1.29514506]
[1750970158216,0.81565,2451.0,2450.9,2.50648949]
[1750970159218,2.17094,2451.1,2450.9,2.50648949]
[1750970159520,2.17094,2451.1,2451.0,1.29514506]
[1750970160419,2.18357797,2451.1,2451.0,1.29514506]
[1750970161615,0.02527594,2451.1,2451.0,2.11079506]
[1750970161820,0.02527594,2451.1,2451.0,6.52993949]
[1750970162015,0.02527594,2451.1,2451.0,6.93356773]
[1750970162926,0.7141,2451.2,2451.1,0.7730301]
[1750970163119,8.4523,2451.5,2451.1,4.65124278]
[1750970163318,0.81558,2451.3,2451.2,2.50853161]
[1750970163823,0.82913764,2451.3,2451.2,2.50853161]
[1750970164118,0.82913764,2451.3,2451.2,2.91011773]
[1750970164324,0.01355764,2451.3,2451.2,2.91011773]
[1750970164528,0.82910764,2451.3,2451.2,2.91011773]
[1750970164723,0.01355764,2451.3,2451.2,2.91011773]
[1750970165527,0.01355764,2451.3,2451.2,2.11073506]
[1750970165924,0.81538,2451.9,2451.3,2.03889]
[1750970166115,3.2078,2452.0,2451.6,6.56389772]
[1750970166321,1.422,2452.3,2451.9,4.02313]
[1750970166621,4.77809772,2452.3,2451.9,3.2078]
[1750970166825,0.81531,2452.1,2451.9,3.2078]
[1750970167026,1.3704,2452.0,2451.9,4.02315]
[1750970167225,1.3704,2452.0,2451.9,6.52944083]
[1750970167428,1.3704,2452.0,2451.9,5.71409083]
[1750970167626,1.3704,2452.0,2451.9,4.5014289]
[1750970167931,2.18572,2452.0,2451.9,5.71185197]
[1750970168126,1.3704,2452.0,2451.9,4.5014289]
[1750970168326,1.3704,2452.0,2451.9,5.71179401]
[1750970168931,2.18572,2452.0,2451.9,5.71179401]
[1750970169131,1.3704,2452.0,2451.9,5.71179401]
[1750970169332,1.3704,2452.0,2451.9,4.5014289]
[1750970169831,2.18572,2452.0,2451.9,4.5014289]
[1750970170037,2.20222525,2452.0,2451.9,1.2936289]
[1750970170637,0.83182525,2452.0,2451.9,1.2936289]
[1750970170836,0.8483305,2452.0,2451.9,1.2936289]
[1750970171937,0.86483575,2452.0,2451.9,1.2936289]
[1750970174338,0.81539,2451.8,2451.6,4.41816511]
[1750970174536,0.81538,2451.9,2451.7,1.28958022]
[1750970174836,0.81538,2451.9,2451.8,1.28958022]
[1750970175039,0.81538,2451.9,2451.8,1.24006447]
[1750970176928,4.86017772,2451.9,2451.8,1.24006447]
[1750970177332,6.24177772,2451.9,2451.8,1.24006447]
[1750970177539,2.88568,2451.9,2451.8,1.24006447]
[1750970178239,3.62603364,2451.9,2451.8,1.24006447]
[1750970179328,3.65382754,2451.9,2451.8,1.24006447]
[1750970183245,7.00992526,2451.9,2451.8,1.24006447]
[1750970183440,6.19454526,2451.9,2451.4,1.21036511]
[1750970183643,3.35609772,2451.7,2451.4,1.21036511]
[1750970184146,4.82049772,2451.7,2451.4,1.21036511]
[1750970184442,0.05614754,2451.6,2451.4,2.02588511]
[1750970185042,0.06010684,2451.5,2451.4,2.02588511]
[1750970185439,0.06406614,2451.5,2451.4,2.02588511]
[1750970185746,0.06406614,2451.5,2451.4,1.21036511]
[1750970185947,0.06406614,2451.5,2451.4,2.02588511]
[1750970186241,0.06406614,2451.5,2451.4,0.81552]
[1750970186442,0.06406614,2451.5,2451.4,2.43240258]
[1750970186740,0.06406614,2451.5,2451.4,1.61688258]
[1750970186945,0.08893763,2451.5,2451.4,5.7885003]